bitfinex/quotes_SOLUSD_20250204
["timestamp","ask_amount","ask_price","bid_price","bid_amount"]
[1738682505014,37.84547684,212.46,212.39,0.50196]
[1738682505240,37.84547684,212.51,212.46,20.0]
[1738682505548,37.84547684,212.57,212.5,20.0]
[1738682505713,37.84547684,212.6,212.52,0.12549]
[1738682505920,37.84547684,212.66,212.56,37.84547684]
[1738682506251,37.84547684,212.66,212.59,0.12549]
[1738682506439,37.84547684,212.64,212.56,37.84547684]
[1738682506746,40.56257684,212.72,212.63,37.84547684]
[1738682506922,40.56257684,212.72,212.59,0.25098]
[1738682506923,37.84547684,212.66,212.57,37.84547684]
[1738682507126,37.84547684,212.64,212.55,37.84547684]
[1738682507345,37.84547684,212.62,212.53,37.84547684]
[1738682507527,37.84547684,212.6,212.51,37.84547684]
[1738682507726,37.84547684,212.53,212.44,18.817915]
[1738682508037,37.84547684,212.53,212.43,37.84547684]
[1738682508352,37.84547684,212.55,212.49,20.0]
[1738682508516,37.84547684,212.57,212.48,37.84547684]
[1738682508940,37.84547684,212.54,212.46,37.84547684]
[1738682509247,37.84547684,212.56,212.49,20.0]
[1738682509421,37.84547684,212.54,212.46,37.84547684]
[1738682509749,37.84547684,212.49,212.4,1.0]
[1738682509914,37.84547684,212.52,212.45,1.0]
[1738682510114,0.88247817,212.59,212.38,23.68867522]
[1738682510115,37.84547684,212.62,212.54,20.0]
[1738682510347,37.84547684,212.62,212.55,1.0]
[1738682510648,37.84547684,212.6,212.54,20.0]
[1738682510849,37.84547684,212.58,212.52,1.0]
[1738682511154,37.84547684,212.6,212.53,1.0]
[1738682511325,37.84547684,212.6,212.52,21.0]
[1738682511532,37.84547684,212.6,212.54,1.0]
[1738682511733,37.84547684,212.64,212.56,21.0]
[1738682511916,40.56257684,212.72,212.64,1.0]
[1738682512117,0.063,212.72,212.68,1.0]
[1738682512340,0.063,212.72,212.7,1.0]
[1738682512525,0.063,212.72,212.7,38.84547684]
[1738682513244,0.063,212.72,212.7,1.0]
[1738682513446,37.90847684,212.72,212.57,37.84547684]
[1738682513619,37.84547684,212.62,212.6,1.0]
[1738682513944,37.84547684,212.64,212.6,1.0]
[1738682514145,37.84547684,212.66,212.6,1.0]
[1738682514446,37.84547684,212.65,212.58,21.0]
[1738682514628,37.84547684,212.7,212.64,1.0]
[1738682514825,0.063,212.72,212.63,37.84547684]
[1738682515046,37.84547684,212.68,212.59,1.0]
[1738682515217,37.84547684,212.68,212.48,55.84]
[1738682515218,0.063,212.72,212.69,1.0]
[1738682515415,0.063,212.72,212.71,21.0]
[1738682515657,0.063,212.72,212.71,1.0]
[1738682515818,0.063,212.72,212.69,1.0]
[1738682516018,0.063,212.72,212.71,1.0]
[1738682516213,0.063,212.72,212.71,14.53733853]
[1738682516413,0.063,212.72,212.71,14.91380853]
[1738682516730,0.063,212.72,212.68,38.84547684]
[1738682516931,0.063,212.72,212.67,0.12549]
[1738682517135,0.063,212.72,212.69,1.0]
[1738682517526,0.063,212.72,212.66,38.84547684]
[1738682517731,0.063,212.72,212.67,1.0]
[1738682517933,0.063,212.72,212.67,20.0]
[1738682518126,37.84547684,212.71,212.63,1.0]
[1738682518433,37.84547684,212.69,212.6,37.84547684]
[1738682518641,37.84547684,212.69,212.63,1.0]
[1738682518947,0.063,212.72,212.68,38.84547684]
[1738682519749,37.84547684,212.71,212.62,37.84547684]
[1738682519927,37.84547684,212.71,212.45,11.5858]
[1738682519928,37.84547684,212.69,212.63,1.0]
[1738682520128,37.84547684,212.71,212.65,1.0]
[1738682520328,0.063,212.72,212.65,1.0]
[1738682520639,0.063,212.72,212.71,0.12549]
[1738682520847,0.063,212.72,212.71,13.91380853]
[1738682521024,0.063,212.72,212.7,38.84547684]
[1738682521425,0.063,212.72,212.71,1.0]
[1738682522459,0.063,212.72,212.71,14.91380853]
[1738682522643,0.063,212.72,212.71,1.0]
[1738682523149,0.063,212.72,212.66,37.84547684]
[1738682523454,0.063,212.72,212.68,1.0]
[1738682523760,0.063,212.72,212.66,1.0]
[1738682523761,37.90847684,212.72,212.66,1.0]
[1738682524061,0.063,212.72,212.66,1.0]
[1738682524345,0.50196,212.67,212.55,37.84547684]
[1738682524555,0.50196,212.67,212.53,37.90847684]
[1738682524556,37.84547684,212.62,212.53,37.90847684]
[1738682524739,37.84547684,212.56,212.53,0.063]
[1738682525268,37.84547684,212.58,212.53,0.063]
[1738682525465,37.84547684,212.56,212.53,0.063]
[1738682525768,37.84547684,212.64,212.58,20.0]
[1738682525964,37.84547684,212.7,212.62,1.0]
[1738682526167,37.84547684,212.66,212.58,20.0]
[1738682526351,37.84547684,212.68,212.58,38.84547684]
[1738682526558,37.84547684,212.7,212.62,1.0]
[1738682526872,0.063,212.72,212.69,20.0]
[1738682527053,0.063,212.72,212.7,38.84547684]
[1738682528663,0.063,212.72,212.7,37.84547684]
[1738682528892,0.063,212.72,212.7,1.0]
[1738682529056,0.063,212.72,212.69,20.0]
[1738682529374,0.063,212.72,212.54,1.0]
[1738682529375,37.84547684,212.7,212.59,1.0]
[1738682529548,37.84547684,212.63,212.55,1.0]
[1738682530069,37.84547684,212.58,212.53,0.063]
[1738682530278,37.84547684,212.62,212.54,1.0]
[1738682530571,37.84547684,212.83,212.71,1.0]
[1738682530761,37.84547684,212.85,212.71,1.50196]
[1738682530962,37.84547684,212.87,212.71,34.91380853]
[1738682531168,37.84547684,212.89,212.71,34.91380853]
[1738682531474,0.03,212.9,212.82,1.0]
[1738682531640,37.84547684,212.89,212.8,1.0]
[1738682531843,37.84547684,212.87,212.8,1.0]
[1738682532044,37.84547684,212.89,212.8,1.0]
[1738682532243,37.84547684,212.89,212.82,1.0]
[1738682532454,37.84547684,212.89,212.84,1.0]
[1738682532679,37.84547684,212.87,212.8,1.0]
[1738682532882,37.84547684,212.87,212.78,1.0]
[1738682533052,37.84547684,212.88,212.82,1.0]
[1738682533248,37.84547684,212.88,212.8,1.0]
[1738682533467,37.84547684,212.84,212.75,37.84547684]
[1738682533670,37.84547684,212.8,212.71,37.84547684]
[1738682533901,0.37647,212.83,212.67,13.41184853]
[1738682533902,37.84547684,212.74,212.67,1.0]
[1738682534183,37.84547684,212.72,212.65,38.84547684]
[1738682534357,57.84547684,212.74,212.65,38.84547684]
[1738682534562,57.84547684,212.74,212.67,1.0]
[1738682534855,37.84547684,212.78,212.71,1.0]
[1738682535076,37.84547684,212.76,212.67,38.84547684]
[1738682535391,37.84547684,212.68,212.59,38.84547684]
[1738682535572,37.84547684,212.68,212.59,37.84547684]
[1738682535895,37.84547684,212.76,212.68,20.0]
[1738682536187,37.84547684,212.76,212.68,1.0]
[1738682536422,37.84547684,212.72,212.63,37.84547684]
[1738682536695,37.84547684,212.68,212.59,37.84547684]
[1738682536859,37.84547684,212.66,212.6,1.0]
[1738682537062,37.84547684,212.64,212.55,37.84547684]
[1738682537257,37.84547684,212.59,212.53,0.063]
[1738682537478,0.50196,212.63,212.53,37.90847684]
[1738682537479,37.84547684,212.63,212.53,37.90847684]
[1738682537693,0.88198623,212.73,212.59,37.84547684]
[1738682537896,37.84547684,212.73,212.63,38.84547684]
[1738682538098,37.84547684,212.69,212.61,37.84547684]
[1738682538400,37.84547684,212.71,212.64,1.0]
[1738682538574,37.84547684,212.83,212.76,1.0]
[1738682538923,40.60647684,212.89,212.82,1.0]
[1738682539503,37.84547684,212.87,212.81,1.0]
[1738682539696,37.84547684,212.87,212.8,37.84547684]
[1738682539873,37.84547684,212.87,212.78,1.0]
[1738682539874,37.84547684,212.85,212.76,37.84547684]
[1738682540229,37.84547684,212.87,212.8,1.0]
[1738682540425,0.8811537,212.92,212.84,38.46641241]
[1738682540426,37.46641241,212.92,212.84,38.46641241]
[1738682540603,37.52941241,212.94,212.86,38.46641241]
[1738682540805,37.52941241,212.94,212.88,1.0]
[1738682541016,0.063,212.94,212.88,38.46641241]
[1738682542709,0.063,212.94,212.89,37.46641241]
[1738682542990,37.46641241,212.92,212.85,37.46641241]
[1738682543195,0.063,212.94,212.88,1.0]
[1738682543409,0.063,212.94,212.89,37.46641241]
[1738682543724,37.46641241,212.93,212.86,1.0]
[1738682544028,0.063,212.94,212.89,1.0]
[1738682544198,0.063,212.94,212.87,38.46641241]
[1738682544609,37.46641241,212.93,212.88,20.0]
[1738682545009,37.46641241,212.91,212.83,38.46641241]
[1738682545214,37.46641241,212.87,212.78,1.0]
[1738682545423,37.46641241,212.85,212.78,1.0]
[1738682545628,37.46641241,212.82,212.73,37.46641241]
[1738682545927,37.46641241,212.76,212.68,37.46641241]
[1738682546095,37.46641241,212.79,212.73,1.0]
[1738682546492,37.46641241,212.79,212.71,1.0]
[1738682546707,0.25098,212.82,212.74,38.46641241]
[1738682546921,37.46641241,212.87,212.78,37.46641241]
[1738682547424,4.6973,212.89,212.78,37.46641241]
[1738682547630,37.46641241,212.89,212.82,37.46641241]
[1738682547845,0.03,212.9,212.86,1.0]
[1738682548135,0.03,212.9,212.86,37.46641241]
[1738682548433,0.03,212.9,212.89,1.0]
[1738682548604,0.03,212.9,212.88,37.46641241]
[1738682548809,0.03,212.9,212.89,1.0]
[1738682549230,0.03,212.9,212.89,14.91380853]
[1738682549930,0.063,212.94,212.93,109.84663335]
[1738682550635,23.67126764,213.19,213.11,1.0]
[1738682550827,0.063,213.2,213.17,37.46641241]
[1738682551025,0.063,213.2,213.19,37.46641241]
[1738682551833,0.063,213.2,213.18,1.0]
[1738682552038,0.063,213.2,213.15,37.46641241]
[1738682552238,0.063,213.2,213.12,38.46641241]
[1738682552534,37.52941241,213.2,213.12,1.0]
[1738682552736,0.12549,213.13,213.06,1.0]
[1738682552918,37.46641241,213.09,213.04,1.0]
[1738682553115,37.46641241,213.07,213.0,1.0]
[1738682553324,37.46641241,213.09,213.03,1.0]
[1738682553515,2.7118,213.16,213.09,1.0]
[1738682553714,0.063,213.2,213.19,1.0]
[1738682553946,0.063,213.2,213.18,37.46641241]
[1738682554106,0.063,213.2,213.16,37.46641241]
[1738682554306,0.063,213.2,213.17,1.0]
[1738682554611,0.063,213.2,213.0,1.0]
[1738682554612,0.063,213.2,213.16,37.46641241]
[1738682554939,1.19999956,213.19,213.18,1.0]
[1738682555139,1.19999956,213.19,213.18,38.46641241]
[1738682555309,38.66641197,213.19,213.17,7.18449405]
[1738682555509,13.89380853,213.18,213.17,4.41489405]
[1738682555710,51.36022094,213.18,213.17,1.64529405]
[1738682556016,0.10549,213.18,213.16,14.40246561]
[1738682556223,1.19999956,213.19,213.16,14.40246561]
[1738682556439,6.23563976,213.26,213.18,1.0]
[1738682556942,37.46641241,213.22,213.16,14.40246561]
[1738682557121,37.46641241,213.22,213.15,1.0]
[1738682557437,37.46641241,213.19,213.11,1.0]
[1738682557611,37.46641241,213.15,213.08,1.0]
[1738682557812,37.46641241,213.13,213.07,14.40246561]
[1738682558022,37.46641241,213.1,213.07,14.40246561]
[1738682558230,37.46641241,213.08,213.07,14.40246561]
[1738682558631,37.46641241,213.18,213.11,1.0]
[1738682559017,37.46641241,213.15,213.09,1.0]
[1738682559226,37.46641241,213.11,213.04,38.46641241]
[1738682559438,37.46641241,213.09,213.04,1.0]
[1738682559646,37.46641241,213.13,213.06,1.0]
[1738682559953,37.46641241,213.1,213.05,1.0]
[1738682560127,36.96641241,213.14,213.05,38.46641241]
[1738682560313,37.46641241,213.12,213.07,1.0]
[1738682560508,4.6915,213.15,213.03,27.61437094]
[1738682560509,0.25098,213.07,213.03,27.61437094]
[1738682560713,37.46641241,213.12,213.07,1.0]
[1738682560930,37.46641241,213.16,213.09,1.0]
[1738682561310,37.46641241,213.14,213.06,37.46641241]
[1738682561639,37.46641241,213.16,213.11,1.0]
[1738682561841,5.57047473,213.19,213.06,37.46641241]
[1738682561842,37.46641241,213.14,213.09,1.0]
[1738682562053,0.25098,213.09,213.05,1.0]
[1738682562228,0.25098,213.09,213.02,1.0]
[1738682562229,37.46641241,213.07,213.02,1.0]
[1738682562429,0.12549,213.02,212.95,1.0]
[1738682562636,37.46641241,212.98,212.95,1.0]
[1738682562850,37.46641241,213.06,212.98,1.0]
[1738682563058,37.46641241,213.08,213.01,1.0]
[1738682563242,37.46641241,213.1,213.04,1.0]
[1738682563568,37.46641241,213.06,212.99,1.0]
[1738682563748,0.12549,213.05,212.98,1.0]
[1738682564060,37.46641241,213.04,212.96,38.46641241]
[1738682564245,37.46641241,213.0,212.92,38.46641241]
[1738682564567,37.46641241,212.96,212.91,1.0]
[1738682564750,37.46641241,212.94,212.87,1.0]
[1738682564957,37.46641241,212.94,212.74,38.46641241]
[1738682564958,37.46641241,212.89,212.83,1.0]
[1738682565134,37.46641241,212.85,212.8,1.0]
[1738682565335,37.46641241,212.83,212.76,1.0]
[1738682565539,37.46641241,212.79,212.76,1.0]
[1738682565861,37.46641241,212.77,212.72,1.0]
[1738682566031,37.46641241,212.85,212.78,1.0]
[1738682566236,37.46641241,212.87,212.78,37.46641241]
[1738682566436,0.88109256,212.93,212.7,0.37647]
[1738682566437,37.46641241,212.79,212.7,1.0]
[1738682566665,37.46641241,212.74,212.69,1.0]
[1738682566961,37.46641241,212.76,212.71,1.0]
[1738682567261,0.12549,212.75,212.66,38.46641241]
[1738682567441,37.59190241,212.74,212.66,1.0]
[1738682567640,75.93999266,212.74,212.64,0.063]
[1738682567859,89.72831119,212.74,212.65,1.0]
[1738682568040,89.72831119,212.74,212.64,0.063]
[1738682568233,90.72831119,212.74,212.64,0.063]
[1738682568435,95.42881119,212.74,212.73,0.0001]
[1738682568636,13.41184853,212.73,212.65,1.0]
[1738682568859,37.46641241,212.7,212.64,0.063]
[1738682569041,4.7007,212.73,212.53,0.063]
[1738682569042,37.46641241,212.65,212.53,0.063]
[1738682569247,37.46641241,212.58,212.55,1.0]
[1738682569563,13.53733853,212.62,212.53,0.063]
[1738682569564,37.46641241,212.56,212.53,0.063]
[1738682569767,37.46641241,212.58,212.54,1.0]
[1738682569963,37.46641241,212.56,212.53,0.063]
[1738682570973,37.46641241,212.56,212.53,1.063]
[1738682571183,1.8822588,212.66,212.55,1.0]
[1738682571459,37.46641241,212.68,212.59,37.46641241]
[1738682571771,13.53733853,212.67,212.59,37.46641241]
[1738682571945,37.46641241,212.66,212.57,37.46641241]
[1738682572262,37.46641241,212.68,212.59,37.46641241]
[1738682572474,37.46641241,212.76,212.65,37.46641241]
[1738682572648,37.46641241,212.76,212.67,37.46641241]
[1738682572845,44.65334904,212.78,212.69,37.46641241]
[1738682573049,37.46641241,212.76,212.67,37.46641241]
[1738682573761,37.46641241,212.72,212.63,37.46641241]
[1738682574134,37.46641241,212.76,212.67,37.46641241]
[1738682574363,37.46641241,212.72,212.63,37.46641241]
[1738682574673,37.46641241,212.72,212.53,1.063]
[1738682574674,37.46641241,212.68,212.59,37.46641241]
[1738682574971,37.46641241,212.64,212.55,37.46641241]
[1738682575178,37.46641241,212.68,212.59,37.46641241]
[1738682575467,37.46641241,212.74,212.67,37.46641241]
[1738682575638,37.46641241,212.7,212.61,37.46641241]
[1738682575839,37.46641241,212.74,212.65,37.46641241]
[1738682576248,0.88153591,212.73,212.59,37.46641241]
[1738682576563,37.46641241,212.68,212.63,0.063]
[1738682577066,0.50196,212.64,212.63,0.063]
[1738682577245,89.72871805,212.64,212.63,0.063]
[1738682577445,0.12549,212.58,212.53,0.063]
[1738682577650,37.96837241,212.54,212.53,0.063]
[1738682578054,77.43478482,212.54,212.53,0.0001]
[1738682578368,20.0,212.48,212.37,20.0]
[1738682578574,37.46641241,212.45,212.37,20.0]
[1738682578867,37.46641241,212.39,212.31,0.063]
[1738682579185,0.88276973,212.44,212.31,0.063]
[1738682579186,37.46641241,212.37,212.31,0.063]
[1738682579345,37.46641241,212.35,212.31,0.063]
[1738682579548,37.46641241,212.33,212.31,0.063]
[1738682580375,38.34956687,212.32,212.31,0.063]
[1738682580695,95.43958781,212.32,212.31,0.063]
[1738682580852,94.43958781,212.32,212.31,0.063]
[1738682581052,20.50196,212.28,212.12,37.46641241]
[1738682581373,37.46641241,212.22,212.14,37.46641241]
[1738682581692,13.91380853,212.21,212.03,1.3]
[1738682581850,37.46641241,212.14,212.06,37.46641241]
[1738682582175,37.46641241,212.14,212.04,37.52941241]
[1738682582373,37.46641241,212.16,212.08,37.46641241]
[1738682582574,37.46641241,212.22,212.14,37.46641241]
[1738682583071,37.46641241,212.28,212.18,37.46641241]
[1738682583247,37.46641241,212.28,212.2,37.46641241]
[1738682583782,37.46641241,212.34,212.26,37.46641241]
[1738682583947,0.8833754,212.38,212.2,0.37647]
[1738682583948,37.46641241,212.36,212.28,37.46641241]
[1738682584140,37.46641241,212.4,212.3,37.46641241]
[1738682584346,37.46641241,212.4,212.22,1.0]
[1738682584347,37.46641241,212.32,212.22,37.46641241]
[1738682584550,37.46641241,212.32,212.16,37.46641241]
[1738682584551,37.46641241,212.24,212.16,37.46641241]
[1738682584746,37.46641241,212.24,212.12,1.0]
[1738682584747,37.46641241,212.26,212.19,37.46641241]
[1738682585045,37.46641241,212.26,212.08,37.46641241]
[1738682585046,7.59277099,212.35,212.11,20.0]
[1738682585373,37.46641241,212.25,212.17,37.46641241]
[1738682585578,37.46641241,212.23,212.15,37.46641241]
[1738682585952,37.46641241,212.27,212.19,37.46641241]
[1738682586365,13.53733853,212.2,212.09,37.46641241]
[1738682586681,37.46641241,212.13,212.05,37.46641241]
[1738682586857,37.46641241,212.09,212.04,0.063]
[1738682587262,37.46641241,212.13,212.05,37.46641241]
[1738682587568,37.46641241,212.17,212.07,37.46641241]
[1738682587750,37.46641241,212.23,212.15,37.46641241]
[1738682587952,37.46641241,212.27,212.19,37.46641241]
[1738682588154,37.46641241,212.25,212.17,37.46641241]
[1738682588354,37.46641241,212.19,212.11,37.46641241]
[1738682588658,37.46641241,212.18,212.11,37.46641241]
[1738682588850,37.46641241,212.2,212.16,0.063]
[1738682589046,37.46641241,212.26,212.17,57.46641241]
[1738682589378,37.46641241,212.3,212.21,37.46641241]
[1738682589855,0.03,212.31,212.23,37.46641241]
[1738682590062,0.03,212.31,212.27,37.46641241]
[1738682590563,0.03,212.31,212.3,0.37647]
[1738682590899,37.46641241,212.47,212.35,0.12549]
[1738682591056,19.72220061,212.53,212.37,37.46641241]
[1738682591057,37.46641241,212.45,212.37,37.46641241]
[1738682591373,37.46641241,212.45,212.35,37.46641241]
[1738682591875,37.46641241,212.43,212.35,37.46641241]
[1738682592051,37.46641241,212.45,212.35,37.46641241]
[1738682592253,37.46641241,212.49,212.39,37.46641241]
[1738682592458,37.46641241,212.49,212.3,38.46641241]
[1738682592459,37.46641241,212.53,212.43,37.46641241]
[1738682592774,37.46641241,212.53,212.35,1.0]
[1738682592775,37.46641241,212.59,212.5,37.46641241]
[1738682593561,37.46641241,212.63,212.54,37.46641241]
[1738682593759,37.46641241,212.65,212.56,37.46641241]
[1738682594013,12.35986626,212.69,212.49,0.37647]
[1738682594014,37.46641241,212.69,212.6,37.46641241]
[1738682594158,37.46641241,212.69,212.62,37.46641241]
[1738682594353,37.46641241,212.69,212.54,0.37647]
[1738682594655,37.46641241,212.69,212.6,37.46641241]
[1738682595082,37.46641241,212.71,212.62,37.46641241]
[1738682595287,37.46641241,212.65,212.56,37.46641241]
[1738682595464,37.46641241,212.63,212.54,37.46641241]
[1738682595672,37.46641241,212.59,212.5,37.46641241]
[1738682595859,37.46641241,212.57,212.48,37.46641241]
[1738682596056,37.46641241,212.55,212.4,11.0747]
[1738682596256,37.46641241,212.47,212.38,37.46641241]
[1738682596463,37.46641241,212.45,212.36,37.46641241]
[1738682596792,37.46641241,212.41,212.32,37.46641241]
[1738682596960,37.46641241,212.45,212.36,37.46641241]
[1738682597160,0.88286022,212.5,212.34,37.46641241]
[1738682597161,37.46641241,212.43,212.34,37.46641241]
[1738682597398,37.46641241,212.47,212.38,37.46641241]
[1738682597594,37.46641241,212.51,212.42,37.46641241]
[1738682598093,37.46641241,212.53,212.44,37.46641241]
[1738682598283,37.46641241,212.49,212.4,37.46641241]
[1738682598594,37.46641241,212.51,212.42,37.46641241]
[1738682598794,37.46641241,212.53,212.46,37.46641241]
[1738682599029,37.46641241,212.57,212.48,37.46641241]
[1738682599183,37.46641241,212.63,212.54,37.46641241]
[1738682599365,37.46641241,212.61,212.52,37.46641241]
[1738682599562,37.46641241,212.63,212.56,37.46641241]
[1738682599874,37.46641241,212.61,212.52,37.46641241]
[1738682600200,37.46641241,212.57,212.48,37.46641241]
[1738682600429,37.46641241,212.52,212.44,37.46641241]
[1738682600632,37.46641241,212.6,212.5,37.46641241]
[1738682600932,37.46641241,212.65,212.56,37.46641241]
[1738682601133,37.46641241,212.63,212.49,0.37647]
[1738682601301,37.46641241,212.63,212.54,37.46641241]
[1738682601626,0.03,212.67,212.61,37.46641241]
[1738682601936,0.03,212.67,212.62,37.46641241]
[1738682602305,0.03,212.67,212.6,57.46641241]
[1738682602526,0.03,212.67,212.58,37.46641241]
[1738682602735,37.46641241,212.64,212.54,37.46641241]
[1738682602897,37.46641241,212.6,212.51,37.46641241]
[1738682603428,37.46641241,212.56,212.49,37.46641241]
[1738682603600,37.46641241,212.54,212.45,37.46641241]
[1738682603803,1.37647,212.62,212.39,11.015]
[1738682603804,37.46641241,212.48,212.39,37.46641241]
[1738682604070,37.46641241,212.46,212.37,37.46641241]
[1738682604201,37.46641241,212.5,212.41,37.46641241]
[1738682605105,37.46641241,212.44,212.35,37.46641241]
[1738682605338,37.46641241,212.36,212.31,0.063]
[1738682605837,37.46641241,212.38,212.31,0.063]
[1738682606036,0.88308225,212.43,212.31,0.063]
[1738682606037,37.46641241,212.34,212.31,0.063]
[1738682606203,37.46641241,212.32,212.31,0.063]
[1738682606635,56.09002094,212.32,212.31,0.063]
[1738682607141,56.09002094,212.32,212.15,37.46641241]
[1738682607142,13.53733853,212.27,212.15,37.46641241]
[1738682607307,37.46641241,212.22,212.16,20.063]
[1738682607498,37.46641241,212.24,212.16,0.063]
[1738682607703,37.46641241,212.18,212.16,0.063]
[1738682607911,37.46641241,212.2,212.16,0.063]
[1738682608312,37.46641241,212.18,212.16,0.063]
[1738682608543,37.46641241,212.23,212.16,0.063]
[1738682608739,37.46641241,212.25,212.16,37.52941241]
[1738682608923,37.46641241,212.27,212.18,37.46641241]
[1738682609127,37.46641241,212.35,212.26,37.46641241]
[1738682609817,57.46641241,212.31,212.22,37.46641241]
[1738682610017,20.0,212.31,212.24,37.46641241]
[1738682610218,37.46641241,212.39,212.22,21.37647]
[1738682610525,37.46641241,212.39,212.3,37.46641241]
[1738682610720,0.88300783,212.45,212.22,0.37647]
[1738682610721,37.46641241,212.37,212.28,37.46641241]
[1738682611043,0.12549,212.38,212.24,37.46641241]
[1738682611044,37.46641241,212.33,212.24,37.46641241]
[1738682611559,37.46641241,212.31,212.22,37.46641241]
[1738682611751,37.46641241,212.33,212.24,37.46641241]
[1738682612045,13.41184853,212.32,212.24,37.46641241]
[1738682612226,37.59190241,212.29,212.18,37.46641241]
[1738682612427,37.46641241,212.21,212.16,0.063]
[1738682612627,37.46641241,212.17,212.16,0.063]
[1738682612957,13.41184853,212.18,212.16,0.063]
[1738682613133,0.50196,212.17,212.16,0.063]
[1738682613338,37.46641241,212.17,212.07,37.46641241]
[1738682613723,13.41184853,212.14,212.05,37.46641241]
[1738682613918,37.46641241,212.17,212.07,37.46641241]
[1738682614256,37.46641241,212.25,212.15,37.46641241]
[1738682614424,37.46641241,212.27,212.19,37.46641241]
[1738682614833,37.46641241,212.29,212.19,37.46641241]
[1738682615038,37.46641241,212.27,212.19,37.46641241]
[1738682615241,37.46641241,212.25,212.15,37.46641241]
[1738682615445,37.46641241,212.25,212.17,37.46641241]
[1738682615652,37.46641241,212.23,212.15,37.46641241]
[1738682615931,37.46641241,212.22,212.13,37.46641241]
[1738682616237,13.41184853,212.24,212.09,37.52941241]
[1738682616238,37.46641241,212.18,212.09,37.52941241]
[1738682616425,37.46641241,212.2,212.11,37.46641241]
[1738682616626,37.46641241,212.18,212.09,37.52941241]
[1738682616850,37.46641241,212.16,212.09,0.063]
[1738682617242,37.46641241,212.18,212.09,37.52941241]
[1738682617441,37.46641241,212.14,212.09,0.063]
[1738682617746,37.46641241,212.12,212.09,0.063]
[1738682618255,37.46641241,212.1,212.09,0.063]
[1738682618451,50.87826094,212.1,212.09,0.063]
[1738682618861,0.12549,212.14,212.09,0.063]
[1738682618862,37.46641241,212.12,212.09,0.063]
[1738682619056,37.46641241,212.1,212.09,0.063]
[1738682619237,37.46641241,212.14,212.09,0.063]
[1738682619436,38.3505833,212.14,212.09,0.063]
[1738682619755,57.46641241,212.1,212.09,0.063]
[1738682619965,71.38022094,212.1,212.09,0.063]
[1738682620163,109.73111574,212.1,212.09,0.063]
[1738682620330,71.38022094,212.1,212.09,0.063]
[1738682620531,72.26476671,212.1,212.09,0.063]
[1738682620847,37.46641241,212.16,212.09,0.063]
[1738682621037,1.0,212.24,212.13,37.46641241]
[1738682621038,37.46641241,212.22,212.13,37.46641241]
[1738682621527,37.46641241,212.18,212.09,37.52941241]
[1738682621725,37.46641241,212.13,212.09,0.063]
[1738682621934,37.84288241,212.19,212.09,0.063]
[1738682621935,37.46641241,212.2,212.12,37.46641241]
[1738682622168,13.41184853,212.19,212.12,37.46641241]
[1738682622350,37.46641241,212.2,212.1,37.46641241]
[1738682622556,37.46641241,212.22,212.14,37.46641241]
[1738682622766,1.0,212.26,212.21,37.46641241]
[1738682622981,1.0,212.3,212.25,37.46641241]
[1738682623283,1.0,212.33,212.25,37.46641241]
[1738682623466,1.0,212.33,212.29,37.46641241]
[1738682623774,1.0,212.3,212.27,37.46641241]
[1738682623966,7.19411508,212.34,212.27,37.46641241]
[1738682624171,7.19411508,212.34,212.32,37.46641241]
[1738682624876,0.03,212.45,212.35,20.0]
[1738682625079,1.03,212.45,212.4,37.46641241]
[1738682625286,0.03,212.45,212.44,37.46641241]
[1738682625463,0.03,212.45,212.44,37.96837241]
[1738682625783,0.03,212.45,212.44,37.46641241]
[1738682625955,14.44184853,212.45,212.4,37.46641241]
[1738682626483,0.03,212.45,212.4,37.46641241]
[1738682626658,0.03,212.45,212.44,37.46641241]
[1738682626855,0.03,212.45,212.44,37.96837241]
[1738682627060,0.03,212.45,212.44,37.46641241]
[1738682627390,0.03,212.45,212.44,0.07979352]
[1738682627608,37.96837241,212.45,212.44,0.07979352]
[1738682627878,37.79942101,212.45,212.44,0.07979352]
[1738682628054,37.42295101,212.45,212.44,0.07979352]
[1738682629057,37.92491101,212.45,212.44,0.07979352]
[1738682629489,51.33675954,212.45,212.44,0.07979352]